[Event "FIDE Open Sachove Univerzity QCC"]
[Site "Ceske Budejovice"]
[Date "2020.07.03"]
[Round "3.8"]
[White "Janouskova, Adela"]
[Black "Hlavsa, Filip"]
[Result "1-0"]
[ECO "B07"]
[WhiteElo "1377"]
[BlackElo "1886"]
[Annotator "NA"]
[PlyCount "87"]
[EventDate "2020.07.01"]
[EventType "swiss"]
[EventCountry "CZE"]
[SourceTitle "playchess.com"]
[Source "ChessBase"]
[SourceQuality "1"]
[TimeControl "40/5400+30:1800+30"]

1. e4 {[%emt 0:00:00]} d6 {[%emt 0:00:15]} 2. d4 {[%emt 0:00:09]} Nf6 {[%emt 0:00:09]} 3. Nc3 {[%emt 0:00:12]} Nbd7 {[%emt 0:00:05]} 4. g3 {[%emt 0:00:32]} e5 {[%emt 0:01:14]} 5. Nge2 {[%emt 0:00:32]} c6 {[%emt 0:01:29]} 6. a4 {[%emt 0:00:37]} Be7 {[%emt 0:01:21]} 7. Bg2 {[%emt 0:01:26]} O-O {[%emt 0:01:58]} 8. O-O {[%emt 0:00:08]} b6 {[%emt 0:01:14]} 9. h3 {[%emt 0:00:35] B07: Pirc Defence: Miscellaneous Systems.} Bb7 {[%emt 0:01:34]} 10. Be3 {[%emt 0:00:21]} a6 {[%emt 0:00:44]} 11. f4 {[%emt 0:02:00]} (11. g4 $14) 11... Qc7 {[%emt 0:00:32] [#]} ({Black should play} 11... b5 $11) 12. f5 $146 {[%emt 0:03:14]} ({Predecessor:} 12. g4 $14 exd4 13. Nxd4 d5 14. e5 Ne8 15. Nf5 Bc5 16. Qd2 Rd8 17. Rae1 Bb4 18. Bf2 {0-1 (70) Galliamova,A (2526)-Skripchenko,A (2450) New Delhi 2000}) 12... b5 {[%emt 0:01:36]} 13. g4 {[%emt 0:02:22]} b4 {[%emt 0:00:33]} 14. Na2 {[%emt 0:01:18]} (14. g5 $17 bxc3 15. gxf6 Bxf6 16. Nxc3) 14... exd4 {[%emt 0:04:05]} 15. Qxd4 {[%emt 0:04:26]} c5 {[%emt 0:01:27]} 16. Qd3 {[%emt 0:00:28]} Ne5 {[%emt 0:00:42]} 17. Qd1 {[%emt 0:01:52]} Nxe4 {[%emt 0:04:26]} ({But not} 17... Bxe4 18. Bxe4 Nxe4 19. Qd5 $19) 18. Nf4 {[%emt 0:02:45]} Nc4 {[%emt 0:06:14]} 19. Bc1 {[%emt 0:02:08]} Rfe8 {[%emt 0:30:30]} 20. Nd5 {[%emt 0:02:42]} Bxd5 {[%emt 0:10:39]} 21. Qxd5 {[%emt 0:00:35]} Ng3 {[%emt 0:00:47]} 22. Qxc4 {[%emt 0:00:40]} Nxf1 {[%emt 0:04:22]} (22... d5 $1 $14 23. Bxd5 {[%mdl 64] Double Attack} Nxf1) 23. Bxa8 {[%emt 0:00:52]} d5 {[%emt 0:01:07]} 24. Bf4 {[%emt 0:15:03]} Nd2 $2 {[%emt 0:09:50]} (24... dxc4 $16 25. Bxc7 Ne3) 25. Bxc7 {[%emt 0:00:51]} Nxc4 {[%emt 0:01:32]} 26. Bxd5 {[%emt 0:00:55]} Ne3 {[%emt 0:00:10]} 27. Bg2 {[%emt 0:05:35]} Nxc2 {[%emt 0:01:25]} 28. Rc1 {[%emt 0:00:53]} b3 {[%emt 0:03:09]} 29. Nc3 {[%emt 0:00:24]} Bf6 {[%emt 0:01:08]} 30. Ba5 {[%emt 0:02:18]} Ne3 {[%emt 0:06:10]} 31. Bf1 {[%emt 0:14:26]} h5 {[%emt 0:02:30]} 32. Re1 {[%emt 0:03:21]} Bd4 $18 {[%emt 0:01:58]} 33. Kh1 {[%emt 0:00:05]} hxg4 {[%emt 0:00:18]} 34. Nd1 {[%emt 0:04:27]} Kf8 {[%emt 0:01:15]} 35. Nxe3 {[%emt 0:00:34]} Rxe3 {[%emt 0:00:17]} 36. Rxe3 {[%emt 0:00:20]} Bxe3 {[%emt 0:00:03]} 37. hxg4 {[%emt 0:00:18]} Bd4 {[%emt 0:00:26]} 38. Bb6 {[%emt 0:01:59]} Ke7 {[%emt 0:01:13]} 39. Bc4 {[%emt 0:00:19]} f6 {[%emt 0:00:31]} 40. Bxb3 {[%emt 0:00:12]} Kd6 {[%emt 0:00:09]} 41. Bc4 {[%emt 0:30:55]} Bxb2 {[%emt 0:01:55]} 42. Bxa6 {[%emt 0:00:00]} Kd5 {[%emt 0:00:19]} 43. a5 {[%emt 0:00:00]} Bd4 {[%emt 0:02:11]} 44. Bb7+ {[%emt 0:00:00]} 1-0

[Event "FIDE Open Sachove Univerzity QCC"]
[Site "Ceske Budejovice"]
[Date "2020.07.03"]
[Round "3.9"]
[White "Svetly, Jiri"]
[Black "Martirosyan, David"]
[Result "1-0"]
[ECO "D90"]
[WhiteElo "1835"]
[BlackElo "1560"]
[Annotator "NA"]
[PlyCount "51"]
[EventDate "2020.07.01"]
[EventType "swiss"]
[EventCountry "CZE"]
[SourceTitle "playchess.com"]
[Source "ChessBase"]
[SourceQuality "1"]
[TimeControl "40/5400+30:1800+30"]

1. d4 {[%emt 0:00:00]} Nf6 {[%emt 0:00:08]} 2. c4 {[%emt 0:00:13]} g6 {[%emt 0:01:00]} 3. Nc3 {[%emt 0:00:09]} d5 {[%emt 0:01:51]} 4. cxd5 {[%emt 0:02:07]} Nxd5 {[%emt 0:00:09]} 5. Bd2 {[%emt 0:00:11]} Bg7 {[%emt 0:00:56]} 6. e4 {[%emt 0:03:53]} Nb6 {[%emt 0:00:59]} 7. Be3 {[%emt 0:03:13]} O-O {[%emt 0:00:47]} 8. Nf3 {[%emt 0:00:35]} Bg4 {[%emt 0:01:38]} 9. Be2 {[%emt 0:01:23]} Bxf3 {[%emt 0:00:55] is the legacy move (9...Nc6). D90: Grünfeld: 4 Nf3 Bg7 sidelines.} 10. Bxf3 {[%emt 0:02:00]} Nc6 {[%emt 0:00:25]} 11. e5 {[%emt 0:08:48] [#]} Nc4 $146 {[%emt 0:10:42]} ({Predecessor:} 11... Qe8 12. Qe2 Rd8 13. Rd1 f5 14. Bxc6 Qxc6 15. f4 Nd5 16. Nxd5 Qxd5 17. Rc1 c6 {0-1 (49) Lima,A (2015)-Supi,L (2168) Maringa 2011}) 12. b3 {[%emt 0:03:00]} Nxe3 {[%emt 0:03:15]} 13. fxe3 {[%emt 0:00:07]} e6 {[%emt 0:10:23]} 14. O-O {[%emt 0:01:00]} Qe7 {[%emt 0:01:23]} 15. Ne4 {[%emt 0:08:39]} Rad8 {[%emt 0:09:36]} 16. Qe2 {[%emt 0:02:33]} Na5 {[%emt 0:16:37]} 17. Qb5 {[%emt 0:02:53]} b6 {[%emt 0:07:11]} 18. Rac1 {[%emt 0:04:48]} Kh8 {[%emt 0:03:14]} 19. b4 {[%emt 0:03:20]} c6 $18 {[%emt 0:10:08]} (19... Bh6 $16 {was worth a try.} 20. Qe2 (20. bxa5 Bxe3+ 21. Kh1 Bxc1 $14) 20... Qxb4) 20. Qa4 {[%emt 0:00:49]} Nb7 {[%emt 0:03:54]} 21. Rxc6 {[%emt 0:03:21]} Bh6 {[%emt 0:03:23]} 22. Qb3 {[%emt 0:03:11]} a5 {[%emt 0:01:33]} 23. a3 {[%emt 0:00:21]} b5 {[%emt 0:04:18]} 24. Rfc1 {[%emt 0:01:39]} axb4 {[%emt 0:01:03]} 25. axb4 {[%emt 0:00:19]} Ra8 {[%emt 0:02:30]} 26. Rc7 {[%emt 0:01:54]} 1-0

[Event "FIDE Open Sachove Univerzity QCC"]
[Site "Ceske Budejovice"]
[Date "2020.07.03"]
[Round "3.10"]
[White "Pokora, Lubomir"]
[Black "Popov, Roman"]
[Result "0-1"]
[ECO "D12"]
[WhiteElo "1800"]
[BlackElo "2353"]
[Annotator "ChessBase"]
[PlyCount "75"]
[EventDate "2020.07.01"]
[EventType "swiss"]
[EventCountry "CZE"]
[SourceTitle "playchess.com"]
[Source "ChessBase"]
[SourceQuality "1"]
[TimeControl "40/5400+30:1800+30"]

1. b3 {[%emt 0:00:00]} d5 {[%emt 0:00:00]} 2. Bb2 {[%emt 0:00:00]} Nf6 {[%emt 0:00:00]} 3. e3 {[%emt 0:00:12]} Bf5 {[%emt 0:00:13]} 4. Nf3 {[%emt 0:01:08]} h6 {[%emt 0:01:11]} 5. d4 {[%emt 0:04:04]} e6 {[%emt 0:00:34]} 6. Nbd2 {[%emt 0:01:46]} c6 {[%emt 0:00:43]} 7. Be2 {[%emt 0:02:48]} Bd6 {[%emt 0:00:29]} 8. O-O {[%emt 0:03:25]} O-O {[%emt 0:01:07]} 9. c4 {[%emt 0:04:44]} Re8 {[%emt 0:02:26]} 10. Qc1 {[%emt 0:06:10]} Nbd7 {[%emt 0:02:46]} 11. Rd1 {[%emt 0:09:37]} e5 {[%emt 0:10:19]} 12. dxe5 {[%emt 0:04:25]} Nxe5 {[%emt 0:00:42]} 13. Nxe5 {[%emt 0:10:30]} Bxe5 {[%emt 0:02:57]} 14. Nf3 {[%emt 0:01:37]} Bxb2 {[%emt 0:09:50]} 15. Qxb2 {[%emt 0:01:01]} Qe7 {[%emt 0:02:38]} 16. cxd5 {[%emt 0:08:05]} Nxd5 {[%emt 0:01:39]} 17. Bc4 {[%emt 0:00:57]} Nf6 {[%emt 0:04:01]} 18. Re1 {[%emt 0:06:21]} Rad8 {[%emt 0:03:14]} 19. Nd4 {[%emt 0:05:43]} Be4 {[%emt 0:05:43]} 20. Rad1 {[%emt 0:10:06]} Bd5 {[%emt 0:08:30]} 21. Qc1 {[%emt 0:02:01]} Qe4 {[%emt 0:05:42]} 22. f3 {[%emt 0:02:30]} Qh4 {[%emt 0:06:24]} 23. Bxd5 {[%emt 0:04:13]} Rxd5 {[%emt 0:01:44]} 24. e4 {[%emt 0:00:52]} Rh5 {[%emt 0:01:36]} 25. h3 {[%emt 0:01:04]} Rg5 {[%emt 0:02:12]} 26. Kh1 {[%emt 0:01:23]} Nh5 {[%emt 0:01:42]} 27. Nf5 {[%emt 0:01:48]} Ng3+ {[%emt 0:02:12]} 28. Nxg3 {[%emt 0:00:08]} Qxg3 {[%emt 0:01:56]} 29. Re2 {[%emt 0:01:44]} Re6 {[%emt 0:04:26]} 30. Qc2 {[%emt 0:03:05]} Reg6 {[%emt 0:02:25]} 31. Qd2 {[%emt 0:01:55]} Rh5 {[%emt 0:01:11]} 32. Qe3 {[%emt 0:01:12]} Rh4 {[%emt 0:02:41]} 33. Qf2 {[%emt 0:00:39]} Rxh3+ {[%emt 0:01:06]} 34. gxh3 {[%emt 0:00:06]} Qxh3+ {[%emt 0:00:08]} 35. Qh2 {[%emt 0:00:40]} Qxf3+ {[%emt 0:00:06]} 36. Rg2 {[%emt 0:00:54]} Qxd1+ {[%emt 0:00:02]} 37. Rg1 {[%emt 0:00:00]} Rxg1+ {[%emt 0:00:03]} 38. Qxg1 {[%emt 0:00:00]} 0-1

[Event "FIDE Open Sachove Univerzity QCC"]
[Site "Ceske Budejovice"]
[Date "2020.07.03"]
[Round "3.11"]
[White "Petkov, Andon"]
[Black "Strapec, Lukas"]
[Result "1-0"]
[ECO "C55"]
[WhiteElo "1776"]
[BlackElo "1525"]
[Annotator "NA"]
[PlyCount "32"]
[EventDate "2020.07.01"]
[EventType "swiss"]
[EventCountry "CZE"]
[SourceTitle "playchess.com"]
[Source "ChessBase"]
[SourceQuality "1"]
[TimeControl "40/5400+30:1800+30"]

1. Nc3 {[%emt 0:09:27]} Nf6 {[%emt 0:00:28]} 2. e4 {[%emt 0:00:08]} e5 {[%emt 0:01:46]} 3. Nf3 {[%emt 0:01:11]} c6 {[%emt 0:02:45]} 4. d4 {[%emt 0:01:52]} exd4 {[%emt 0:01:18]} 5. Qxd4 {[%emt 0:00:14]} d5 {[%emt 0:10:20]} 6. exd5 {[%emt 0:05:41]} Nxd5 {[%emt 0:00:29]} 7. Bc4 {[%emt 0:04:23]} Nxc3 {[%emt 0:07:04]} 8. Bxf7+ {[%emt 0:01:16]} Kxf7 {[%emt 0:12:48]} 9. Qxd8 {[%emt 0:00:08]} Nxa2 {[%emt 0:01:54]} 10. Ng5+ {[%emt 0:09:32]} Kg6 {[%emt 0:01:26]} 11. Qe8+ {[%emt 0:00:11]} Kf6 {[%emt 0:03:01]} 12. Qf7+ {[%emt 0:01:14]} Ke5 {[%emt 0:02:04]} 13. Bf4+ {[%emt 0:01:56]} Kd4 {[%emt 0:00:36]} 14. Rd1+ {[%emt 0:00:56]} Kc5 {[%emt 0:00:28]} 15. Qxa2 {[%emt 0:00:35]} b5 {[%emt 0:02:11]} 16. Be3+ {[%emt 0:00:18]} Kb4 {[%emt 0:00:56]} 1-0

[Event "FIDE Open Sachove Univerzity QCC"]
[Site "Ceske Budejovice"]
[Date "2020.07.03"]
[Round "3.12"]
[White "Dobsinsky, Petr"]
[Black "Huemer, Gerald"]
[Result "0-1"]
[ECO "E00"]
[WhiteElo "1248"]
[BlackElo "1721"]
[Annotator "NA"]
[PlyCount "62"]
[EventDate "2020.07.01"]
[EventType "swiss"]
[EventCountry "CZE"]
[SourceTitle "playchess.com"]
[Source "ChessBase"]
[SourceQuality "1"]
[TimeControl "40/5400+30:1800+30"]

1. d4 {[%emt 0:00:00]} Nf6 {[%emt 0:00:00]} 2. c4 {[%emt 0:00:00]} e6 {[%emt 0:00:20]} 3. Nc3 {[%emt 0:00:05]} Be7 {[%emt 0:00:45]} 4. Bg5 {[%emt 0:00:48]} d6 {[%emt 0:00:15]} 5. e3 {[%emt 0:01:06]} Nbd7 {[%emt 0:00:23]} 6. Bd3 {[%emt 0:00:27]} b6 {[%emt 0:04:28]} 7. Qf3 {[%emt 0:02:59]} Rb8 {[%emt 0:01:28]} 8. Nge2 {[%emt 0:04:58]} Bb7 {[%emt 0:01:16]} 9. Qg3 {[%emt 0:01:20]} Nh5 {[%emt 0:06:41]} 10. Bxe7 {[%emt 0:00:19]} Nxg3 {[%emt 0:00:16]} 11. Bxd8 {[%emt 0:00:04]} Nxh1 {[%emt 0:00:18]} 12. Bxc7 {[%emt 0:00:46]} Rc8 {[%emt 0:00:07]} 13. Bxd6 {[%emt 0:00:40]} Bxg2 {[%emt 0:00:10]} 14. b3 {[%emt 0:02:42]} Nf6 {[%emt 0:03:08]} 15. Be5 {[%emt 0:04:06]} Ng4 {[%emt 0:00:47]} 16. Nb5 {[%emt 0:00:41]} O-O {[%emt 0:00:59]} 17. Nd6 {[%emt 0:01:03]} Nhxf2 {[%emt 0:03:53]} 18. Kd2 {[%emt 0:02:13]} Nxe5 {[%emt 0:05:28]} 19. dxe5 {[%emt 0:00:40]} Rcd8 {[%emt 0:02:47]} 20. Rg1 {[%emt 0:02:17]} Nxd3 {[%emt 0:00:30]} 21. Kxd3 {[%emt 0:01:05]} Bf3 {[%emt 0:01:20]} 22. Nd4 {[%emt 0:00:33]} Bh5 {[%emt 0:01:13]} 23. N6b5 {[%emt 0:05:16]} f6 {[%emt 0:03:58]} 24. Kc3 {[%emt 0:01:47]} Bg6 {[%emt 0:04:10]} 25. Nd6 {[%emt 0:02:29]} fxe5 {[%emt 0:00:42]} 26. Nxe6 {[%emt 0:01:49]} Rxd6 {[%emt 0:00:13]} 27. Nxf8 {[%emt 0:00:18]} Kxf8 {[%emt 0:00:03]} 28. Rg5 {[%emt 0:02:28]} Rd3+ {[%emt 0:02:54]} 29. Kb2 {[%emt 0:01:04]} Rxe3 {[%emt 0:00:15]} 30. Rg1 {[%emt 0:00:45]} Re2+ {[%emt 0:00:26]} 31. Kc1 {[%emt 1:00:42]} Rxa2 {[%emt 0:56:17]} 0-1

[Event "FIDE Open Sachove Univerzity QCC"]
[Site "Ceske Budejovice"]
[Date "2020.07.03"]
[Round "3.13"]
[White "Pesek, Petr"]
[Black "Zezula, Matej"]
[Result "0-1"]
[ECO "B30"]
[WhiteElo "1927"]
[BlackElo "1125"]
[Annotator "ChessBase"]
[PlyCount "50"]
[EventDate "2020.07.01"]
[EventType "swiss"]
[EventCountry "CZE"]
[SourceTitle "playchess.com"]
[Source "ChessBase"]
[SourceQuality "1"]
[TimeControl "40/5400+30:1800+30"]

1. e4 {[%emt 0:00:00]} c5 {[%emt 0:00:00]} 2. Nf3 {[%emt 0:00:00]} Nc6 {[%emt 0:00:06]} 3. Bc4 {[%emt 0:00:12]} g6 {[%emt 0:00:55]} 4. c3 {[%emt 0:00:55]} Bg7 {[%emt 0:00:49]} 5. d4 {[%emt 0:01:04]} cxd4 {[%emt 0:00:25]} 6. cxd4 {[%emt 0:00:26]} d6 {[%emt 0:00:33]} 7. d5 {[%emt 0:01:04]} Ne5 {[%emt 0:00:43]} 8. Qd4 {[%emt 0:01:01]} Nxf3+ {[%emt 0:00:21]} 9. gxf3 {[%emt 0:01:51]} Bxd4 {[%emt 0:00:11]} 10. Nd2 {[%emt 0:01:47]} e5 {[%emt 0:00:32]} 11. Nb3 {[%emt 0:01:36]} Bb6 {[%emt 0:00:37]} 12. Bd2 {[%emt 0:02:00]} Nf6 {[%emt 0:04:41]} 13. Bg5 {[%emt 0:00:54]} O-O {[%emt 0:02:58]} 14. a3 {[%emt 0:05:46]} Kg7 {[%emt 0:02:54]} 15. Rc1 {[%emt 0:05:16]} Ba5+ {[%emt 0:01:00]} 16. Kf1 {[%emt 0:00:27]} Bh3+ {[%emt 0:00:40]} 17. Kg1 {[%emt 0:00:20]} Bb6 {[%emt 0:00:40]} 18. Bb5 {[%emt 0:02:04]} Bxf2+ {[%emt 0:01:37]} 19. Kxf2 {[%emt 0:00:31]} Qb6+ {[%emt 0:00:08]} 20. Ke2 {[%emt 0:00:59]} Qxb5+ {[%emt 0:00:07]} 21. Kd1 {[%emt 0:00:54]} Qxb3+ {[%emt 0:00:10]} 22. Rc2 {[%emt 0:00:20]} Bg2 {[%emt 0:00:21]} 23. Rg1 {[%emt 0:00:36]} Bxf3+ {[%emt 0:00:10]} 24. Kd2 {[%emt 0:01:08]} Nxe4+ {[%emt 0:00:06]} 25. Ke1 {[%emt 0:01:50]} Qxc2 {[%emt 0:00:12]} 0-1

[Event "FIDE Open Sachove Univerzity QCC"]
[Site "Ceske Budejovice"]
[Date "2020.07.03"]
[Round "3.13"]
[White "Molnar, Ladislav"]
[Black "Karweit, Alex W"]
[Result "1-0"]
[ECO "C50"]
[WhiteElo "1712"]
[BlackElo "1579"]
[Annotator "NA"]
[PlyCount "44"]
[EventDate "2020.07.01"]
[EventType "swiss"]
[EventCountry "CZE"]
[SourceTitle "playchess.com"]
[Source "ChessBase"]
[SourceQuality "1"]
[TimeControl "40/5400+30:1800+30"]

1. e4 {[%emt 0:00:00]} e5 {[%emt 0:33:39]} 2. Bc4 {[%emt 0:00:00]} Bc5 {[%emt 0:00:30]} 3. Nf3 {[%emt 0:00:26]} Nc6 {[%emt 0:00:07]} 4. d3 {[%emt 0:00:20]} h6 {[%emt 0:01:21]} 5. O-O {[%emt 0:01:30]} Nf6 {[%emt 0:00:26]} 6. Nc3 {[%emt 0:01:35]} a6 {[%emt 0:03:22]} 7. a3 {[%emt 0:00:53]} b5 {[%emt 0:01:31]} 8. Ba2 {[%emt 0:00:36]} Qe7 {[%emt 0:03:54]} 9. Nd5 {[%emt 0:03:55]} Qd6 {[%emt 0:08:41]} 10. Nh4 {[%emt 0:07:17]} Nxd5 {[%emt 0:04:33]} 11. Bxd5 {[%emt 0:02:36]} Qf6 {[%emt 0:06:14]} 12. Nf5 {[%emt 0:01:29]} Bb7 {[%emt 0:01:03]} 13. Be3 {[%emt 0:02:27]} Bxe3 {[%emt 0:04:10]} 14. fxe3 {[%emt 0:00:13]} O-O {[%emt 0:00:23]} 15. Qg4 {[%emt 0:01:37]} Qg5 {[%emt 0:02:26]} 16. Qh3 {[%emt 0:01:59]} Nd8 {[%emt 0:01:51]} 17. Bxb7 {[%emt 0:03:27]} Nxb7 {[%emt 0:00:04]} 18. Rf3 {[%emt 0:00:18]} Kh7 {[%emt 0:02:20]} 19. Rg3 {[%emt 0:03:10]} Qf6 {[%emt 0:01:20]} 20. Rxg7+ {[%emt 0:01:45]} Kh8 {[%emt 0:00:25]} 21. Rg4 {[%emt 0:02:49]} h5 {[%emt 0:02:28]} 22. Qxh5+ {[%emt 0:00:42]} Qh6 {[%emt 0:00:03]} 1-0

[Event "FIDE Open Sachove Univerzity QCC"]
[Site "Ceske Budejovice"]
[Date "2020.07.03"]
[Round "3.14"]
[White "Vavrousek, Petr"]
[Black "Jodas, Daniel"]
[Result "1-0"]
[ECO "B57"]
[WhiteElo "1605"]
[BlackElo "1608"]
[Annotator "NA"]
[PlyCount "67"]
[EventDate "2020.07.01"]
[EventType "swiss"]
[EventCountry "CZE"]
[SourceTitle "playchess.com"]
[Source "ChessBase"]
[SourceQuality "1"]
[TimeControl "40/5400+30:1800+30"]

1. e4 {[%emt 0:00:47]} c5 {[%emt 0:00:00]} 2. Nf3 {[%emt 0:00:27]} d6 {[%emt 0:00:15]} 3. d4 {[%emt 0:00:07]} cxd4 {[%emt 0:00:05]} 4. Nxd4 {[%emt 0:00:05]} Nc6 {[%emt 0:00:34]} 5. Bc4 {[%emt 0:00:25]} Nf6 {[%emt 0:00:43]} 6. Nc3 {[%emt 0:00:10]} a6 {[%emt 0:00:40]} 7. Be3 {[%emt 0:01:22]} Bd7 {[%emt 0:01:04]} 8. f3 {[%emt 0:01:13]} e6 {[%emt 0:02:09]} 9. Qe2 {[%emt 0:01:03]} b5 {[%emt 0:01:56]} 10. Nxc6 {[%emt 0:00:38]} Bxc6 {[%emt 0:00:22]} 11. Bb3 {[%emt 0:00:27]} Be7 {[%emt 0:01:16]} 12. O-O-O {[%emt 0:00:14]} Qc7 {[%emt 0:02:31]} 13. g4 {[%emt 0:01:26]} b4 {[%emt 0:03:34]} 14. Na4 {[%emt 0:00:19]} Bb5 {[%emt 0:00:37]} 15. Qf2 {[%emt 0:00:30]} Qc6 {[%emt 0:00:42]} 16. Nb6 {[%emt 0:04:53]} Rb8 {[%emt 0:02:27]} 17. g5 {[%emt 0:03:20]} Nd7 {[%emt 0:01:51]} 18. Nxd7 {[%emt 0:00:14]} Kxd7 {[%emt 0:00:27]} 19. Kb1 {[%emt 0:02:37]} a5 {[%emt 0:01:50]} 20. c3 {[%emt 0:01:03]} bxc3 {[%emt 0:01:13]} 21. Rc1 {[%emt 0:00:22]} Bd3+ {[%emt 0:02:00]} 22. Ka1 {[%emt 0:02:28]} cxb2+ {[%emt 0:31:19]} 23. Qxb2 {[%emt 0:00:30]} Qb5 {[%emt 0:00:37]} 24. Qd4 {[%emt 0:07:32]} Qb4 {[%emt 0:05:44]} 25. Qxd3 {[%emt 0:01:52]} Rhc8 {[%emt 0:14:53]} 26. Rc4 {[%emt 0:07:14]} Rxc4 {[%emt 0:13:47]} 27. Qxc4 {[%emt 0:04:16]} Qb7 {[%emt 0:00:17]} 28. Rc1 {[%emt 0:02:11]} Kd8 {[%emt 0:01:35]} 29. h4 {[%emt 0:01:57]} Ke8 {[%emt 0:04:40]} 30. Qc6+ {[%emt 0:01:24]} Qxc6 {[%emt 0:01:29]} 31. Rxc6 {[%emt 0:00:11]} e5 {[%emt 0:02:26]} 32. Ra6 {[%emt 0:00:38]} Rc8 {[%emt 0:02:00]} 33. Rxa5 {[%emt 0:00:32]} Rc3 {[%emt 0:00:10]} 34. Ba4+ {[%emt 0:01:19]} 1-0

[Event "FIDE Open Sachove Univerzity QCC"]
[Site "Ceske Budejovice"]
[Date "2020.07.03"]
[Round "3.15"]
[White "Kroulik, Vaclav"]
[Black "Zachar, Jaroslav"]
[Result "1-0"]
[ECO "C10"]
[WhiteElo "1442"]
[BlackElo "1831"]
[Annotator "NA"]
[PlyCount "87"]
[EventDate "2020.07.01"]
[EventType "swiss"]
[EventCountry "CZE"]
[SourceTitle "playchess.com"]
[Source "ChessBase"]
[SourceQuality "1"]
[TimeControl "40/5400+30:1800+30"]

1. e4 {[%emt 0:00:00]} e6 {[%emt 0:10:58]} 2. d4 {[%emt 0:00:00]} d5 {[%emt 0:00:08]} 3. Nc3 {[%emt 0:00:00]} dxe4 {[%emt 0:00:27]} 4. Nxe4 {[%emt 0:00:10]} Nd7 {[%emt 0:01:40]} 5. Nf3 {[%emt 0:02:30]} Ngf6 {[%emt 0:00:45]} 6. Bg5 {[%emt 0:03:30]} Be7 {[%emt 0:00:19]} 7. Nxf6+ {[%emt 0:01:47]} Nxf6 {[%emt 0:01:41]} 8. Bd3 {[%emt 0:02:48]} c5 {[%emt 0:05:17]} 9. c3 {[%emt 0:02:16]} cxd4 {[%emt 0:02:57]} 10. Nxd4 {[%emt 0:00:33]} O-O {[%emt 0:01:15]} 11. O-O {[%emt 0:01:16]} e5 {[%emt 0:17:10] C10: French with 3 Nc3: Unusual Black 3rd moves and 3...dxe4.} 12. Nf5 {[%emt 0:04:41]} Bxf5 {[%emt 0:02:28]} 13. Bxf5 {[%emt 0:00:35] [#]} Re8 $146 {[%emt 0:01:58]} ({Predecessor:} 13... Qb6 14. Qb3 Qxb3 15. axb3 Nd5 16. Bxe7 Nxe7 17. Be4 Nc6 18. Bxc6 bxc6 19. Ra6 Rfc8 20. Rd1 Rd8 21. Rxd8+ Rxd8 22. Kf1 Rd2 23. Rxa7 {1-0 (23) Ferrante,F (2092)-Puleio,B (1811) Palermo 2004}) 14. Qc2 {[%emt 0:01:28]} g6 {[%emt 0:03:42]} 15. Rad1 {[%emt 0:01:07]} Qb6 {[%emt 0:00:30]} 16. Bh3 {[%emt 0:07:09]} Nh5 {[%emt 0:01:52]} 17. Be3 {[%emt 0:04:23]} Bc5 {[%emt 0:01:16]} 18. Bxc5 {[%emt 0:05:02]} Qxc5 {[%emt 0:00:03]} 19. g3 {[%emt 0:00:26]} b5 {[%emt 0:03:01]} (19... Rad8 $11) 20. Bg2 {[%emt 0:01:22]} Rac8 {[%emt 0:01:13]} 21. Rd5 {[%emt 0:01:05]} Qc4 {[%emt 0:00:30]} 22. a3 {[%emt 0:05:08]} Nf6 {[%emt 0:01:13]} 23. Rd6 {[%emt 0:03:35]} Kg7 {[%emt 0:01:49]} 24. Rfd1 {[%emt 0:01:43]} Rc7 {[%emt 0:04:15]} 25. Bf1 {[%emt 0:04:01]} Qc5 {[%emt 0:00:56]} 26. Qe2 {[%emt 0:02:01]} Rb8 {[%emt 0:02:47]} 27. Qf3 {[%emt 0:01:33]} Ne8 {[%emt 0:12:32]} 28. R1d5 {[%emt 0:04:20]} Nxd6 {[%emt 0:01:18]} 29. Rxc5 {[%emt 0:00:45]} Rxc5 {[%emt 0:00:01]} 30. Qd3 {[%emt 0:00:51]} Ne8 $16 {[%emt 0:04:43]} (30... Rb6 $11 {keeps the balance.}) 31. Qd7 {[%emt 0:00:48]} Rc7 {[%emt 0:00:22]} 32. Qd5 {[%emt 0:00:24]} Re7 {[%emt 0:01:26]} 33. Bxb5 {[%emt 0:01:38]} Nf6 {[%emt 0:04:12]} 34. Qd6 {[%emt 0:01:31]} Reb7 {[%emt 0:00:15]} 35. c4 {[%emt 0:00:43]} e4 {[%emt 0:00:20]} 36. b4 {[%emt 0:01:26]} Rb6 {[%emt 0:00:33]} 37. Qd4 {[%emt 0:01:21]} a6 {[%emt 0:00:32]} 38. Ba4 {[%emt 0:00:22]} R8b7 {[%emt 0:02:31]} 39. c5 {[%emt 0:00:40]} Re6 {[%emt 0:00:26]} 40. Bb3 {[%emt 0:01:02]} Rd7 {[%emt 0:04:04]} 41. Qc3 {[%emt 0:31:26]} Rd3 {[%emt 0:07:18]} 42. Qc2 {[%emt 0:00:00]} Rc6 {[%emt 0:07:51]} 43. Bc4 {[%emt 0:00:00]} Rxa3 {[%emt 0:01:07]} 44. Qb2 {[%emt 0:00:00]} 1-0